fUSD/lending_fUSD_20241227
["ID","MTS","AMOUNT","RATE_DAILY","PERIOD"]
[346846439,1735321848861,-500.0,0.00010554,2]
[346846440,1735321848871,-500.0,0.00010554,2]
[346846441,1735321848880,-528.53463124,0.00010555,2]
[346846442,1735321848890,-835.79,0.00010555,2]
[346846443,1735321848900,-700.28,0.00010555,2]
[346846444,1735321848909,-706.36,0.00010555,2]
[346846445,1735321848918,-500.0,0.00010555,2]
[346846446,1735321848928,-1139.48,0.00010555,2]
[346846447,1735321848938,-813.82,0.00010555,2]
[346846448,1735321848948,-1967.6,0.00010555,2]
[346846449,1735321848958,-901.45,0.00010555,2]
[346846450,1735321848967,-4187.38,0.00010555,2]
[346846451,1735321848977,-773.42,0.00010555,2]
[346846452,1735321848987,-500.0,0.00010555,2]
[346846453,1735321848996,-1088.58,0.00010555,2]
[346846454,1735321849006,-500.0,0.00010555,2]
[346846455,1735321849017,-2060.08,0.00010555,2]
[346846456,1735321849026,-1273.6,0.00010555,2]
[346846457,1735321849036,-877.97,0.00010555,2]
[346846458,1735321849046,-508.7155407,0.00010555,2]
[346846459,1735321849055,-833.53,0.00010555,2]
[346846460,1735321849065,-1309.78,0.00010555,2]
[346846461,1735321849298,-897.62,0.00010555,2]
[346846462,1735321849309,-7667.8,0.00010555,2]
[346846463,1735321849320,-622.85,0.00010555,2]
[346846464,1735321849330,-2050.22,0.00010555,2]
[346846465,1735321849340,-909.62,0.00010555,2]
[346846466,1735321849350,-625.99,0.00010555,2]
[346846467,1735321849359,-1023.49,0.00010555,2]
[346846468,1735321849369,-1262.33,0.00010555,2]
[346846469,1735321849379,-1465.23,0.00010555,2]
[346846470,1735321849388,-500.0,0.00010555,2]
[346846471,1735321849398,-1871.73,0.00010555,2]
[346846472,1735321849407,-1802.64,0.00010555,2]
[346846473,1735321849416,-612.19,0.00010555,2]
[346846474,1735321849426,-1277.53,0.00010555,2]
[346846475,1735321849435,-955.84,0.00010555,2]
[346846476,1735321849445,-1990.95,0.00010555,2]
[346846477,1735321849454,-500.0,0.00010555,2]
[346846478,1735321849464,-500.0,0.00010555,2]
[346846479,1735321849474,-1588.72,0.00010555,2]
[346846480,1735321849483,-500.0,0.00010555,2]
[346846481,1735321849493,-514.27,0.00010555,2]
[346846482,1735321849502,-525.9,0.00010555,2]
[346846483,1735321849511,-914.83,0.00010555,2]
[346846484,1735321849521,-3670.01,0.00010555,2]
[346846485,1735321849531,-5300.48,0.00010555,2]
[346846486,1735321849541,-2046.02,0.00010555,2]
[346846487,1735321849551,-629.21370575,0.00010555,2]
[346846488,1735321849563,-3425.44629425,0.00010555,2]
[346846489,1735321849573,-678.33,0.00010555,2]
[346846490,1735321849582,-519.2101584,0.00010573,2]
[346846491,1735321849592,-500.0,0.00010598,2]
[346846492,1735321849601,-500.0,0.00010598,2]
[346846493,1735321849611,-500.0,0.00010598,2]
[346846494,1735321849620,-2245.57,0.00010599,2]
[346846495,1735321849630,-2645.82,0.00010599,2]
[346846496,1735321849639,-4975.14,0.00010599,2]
[346846497,1735321849649,-6193.45,0.00010599,2]
[346846498,1735321849658,-21918.48,0.00010599,2]
[346846499,1735321849668,-3972.55,0.00010599,2]
[346846500,1735321849677,-1935.97,0.00010599,2]
[346846501,1735321849687,-1650.82,0.00010599,2]
[346846502,1735321849696,-2894.2,0.00010599,2]
[346846503,1735321849705,-4345.04970268,0.00010599,2]
[346846504,1735321850096,-18620.08029732,0.00010599,2]
[346846505,1735321850107,-779.86,0.00010599,2]
[346846506,1735321850116,-3941.57,0.00010599,2]
[346846507,1735321850126,-2321.13,0.00010599,2]
[346846508,1735321850136,-1695.55,0.00010599,2]
[346846509,1735321850146,-3226.37729817,0.00010599,2]
[346846510,1735321850157,-1644.15869853,0.00010599,2]
[346846511,1735321850248,-163.1940033,0.00010599,2]
[346846512,1735321850258,-677.49,0.00010599,2]
[346846513,1735321850270,-1301.99,0.00010599,2]
[346846514,1735321850282,-815.36448292,0.00010599,2]
[346846515,1735321850294,-575.67551708,0.00010599,2]
[346846516,1735321850304,-1245.24,0.00010599,2]
[346846517,1735321850315,-881.24329195,0.00010599,2]
[346846518,1735321850327,-312.22239432,0.00010599,2]
[346846519,1735321850339,-834.86306999,0.00010599,2]
[346846520,1735321850357,-291.41570006,0.00010599,2]
[346846521,1735321850368,-408.50202748,0.00010599,2]
[346846522,1735321850471,-1432.3535162,0.00010599,2]
[346846523,1735321850480,-567.6464838,0.00010599,2]
[346846524,1735321851054,372.808,9.647e-05,2]
[346846532,1735322111172,682.48,8.219e-05,2]
[346846540,1735322773397,250.0,9.616e-05,2]
[346846541,1735322817813,345.15,9.597e-05,2]
[346846568,1735322840048,1528.64,9.596e-05,2]
[346846613,1735323031580,-1000.0,9.766e-05,2]
[346846615,1735323031590,-500.0,9.766e-05,2]
[346846617,1735323031599,-232.48,9.897e-05,2]
[346846619,1735323031609,-555.6118192,9.914e-05,2]
[346846621,1735323031618,-2402.21510871,9.999e-05,2]
[346846638,1735323031785,-7148.82482686,9.999e-05,2]
[346846641,1735323031798,-946.363912,9.999e-05,2]
[346846643,1735323031863,-1460.28933292,9.999e-05,2]
[346846644,1735323031939,-5740.41632709,9.999e-05,2]
[346846664,1735323037733,-7245.55690676,9.999e-05,2]
[346846665,1735323037745,-716.41036233,9.999e-05,2]
[346846742,1735323039536,-1024.55704756,9.999e-05,2]
[346846745,1735323039548,-384.90309798,9.999e-05,2]
[346846747,1735323039559,-502.24245446,9.999e-05,2]
[346846755,1735323039631,-943.6316685,9.999e-05,2]
[346846764,1735323039712,-21484.58895483,9.999e-05,2]
[346846766,1735323039721,-300.0,9.999e-05,2]
[346846768,1735323039731,-1000.0,0.0001,2]
[346846769,1735323039741,-162.67,0.00010137,2]
[346846770,1735323039750,-150.0,0.00010331,2]
[346846771,1735323039760,-582.88,0.00010331,2]
[346846772,1735323039771,-153.15,0.00010331,2]
[346846773,1735323039782,-150.0,0.00010331,2]
[346846774,1735323039792,-915.45462686,0.00010349,2]
[346846775,1735323039801,-436.57,0.000104,2]
[346846776,1735323039811,-155.25,0.000104,2]
[346846777,1735323039820,-150.0,0.000104,2]
[346846778,1735323039830,-436.57,0.000104,2]
[346846779,1735323039840,-329.3342,0.00010453,2]
[346846780,1735323039849,-55555.0,0.00010453,2]
[346846782,1735323039860,-682.48,0.00010464,2]
[346846784,1735323039870,-230.83,0.00010474,2]
[346846786,1735323039880,-519.583,0.0001048,2]
[346846788,1735323039890,-436.57,0.000105,2]
[346846790,1735323039899,-767.17,0.000105,2]
[346846792,1735323039909,-312.34,0.000105,2]
[346846794,1735323039919,-1098.12,0.00010551,2]
[346846796,1735323039928,-915.33,0.00010551,2]
[346846799,1735323039939,-775.96,0.00010551,2]
[346846800,1735323039948,-1358.38,0.00010551,2]
[346846802,1735323039957,-500.0,0.00010551,2]
[346846804,1735323039967,-550.83,0.00010551,2]
[346846806,1735323039976,-7118.69,0.00010551,2]
[346846808,1735323039986,-1809.06,0.00010551,2]
[346846810,1735323039995,-1133.85,0.00010551,2]
[346846812,1735323040005,-2349.67,0.00010551,2]
[346846814,1735323040015,-2559.43,0.00010551,2]
[346846816,1735323040029,-1598.24,0.00010551,2]
[346846819,1735323040041,-2693.01,0.00010551,2]
[346846821,1735323040055,-1679.98,0.00010551,2]
[346846823,1735323040068,-1305.24,0.00010551,2]
[346846826,1735323040080,-500.0,0.00010551,2]
[346846828,1735323040091,-970.56,0.00010551,2]
[346846830,1735323040103,-493.61619507,0.00010551,2]
[346846917,1735323042874,-335.90183811,0.0001049,2]
[346846920,1735323042889,-2664.09816189,0.0001049,2]
[346846922,1735323042900,-652.18380493,0.00010551,2]
[346846924,1735323042911,-512.13,0.00010551,2]
[346846926,1735323042922,-1412.31,0.00010551,2]
[346846929,1735323042934,-1955.97,0.00010551,2]
[346846931,1735323042945,-500.0,0.00010551,2]
[346846933,1735323042955,-681.05,0.00010551,2]
[346846935,1735323042966,-500.0,0.00010551,2]
[346846937,1735323042977,-500.0,0.00010551,2]
[346846939,1735323042988,-918.55,0.00010551,2]
[346846941,1735323042999,-2719.56,0.00010551,2]
[346846943,1735323043010,-8207.49,0.00010551,2]
[346846945,1735323043021,-843.11,0.00010551,2]
[346846947,1735323043032,-203.64790921,0.00010552,2]
[346846950,1735323043042,-644.37,0.00010552,2]
[346846952,1735323043053,-500.0,0.00010552,2]
[346846953,1735323043063,-499.98,0.00010552,2]
[346846954,1735323043074,-500.0,0.00010552,2]
[346846955,1735323043085,-500.0,0.00010552,2]
[346846956,1735323043096,-500.0,0.00010552,2]
[346846957,1735323043107,-1435.83,0.00010552,2]
[346846958,1735323043118,-501.83637131,0.00010552,2]
[346846959,1735323043129,-500.0,0.00010552,2]
[346846960,1735323043140,-505.81573014,0.00010552,2]
[346846961,1735323043151,-500.0,0.00010552,2]
[346846962,1735323043163,-500.0,0.00010552,2]
[346846963,1735323043174,-500.0,0.00010552,2]
[346846964,1735323043185,-501.18949049,0.00010552,2]
[346846965,1735323043196,-500.0,0.00010552,2]
[346846966,1735323043208,-500.0,0.00010552,2]
[346846967,1735323043219,-500.0,0.00010552,2]
[346846968,1735323043230,-500.0,0.00010552,2]
[346846969,1735323043240,-513.18,0.00010552,2]
[346846970,1735323043251,-500.0,0.00010552,2]
[346846971,1735323043263,-500.0,0.00010552,2]
[346846972,1735323043275,-1074.36,0.00010552,2]
[346846973,1735323043286,-500.0,0.00010552,2]
[346846974,1735323043297,-500.0,0.00010552,2]
[346846975,1735323043308,-500.0,0.00010552,2]
[346846977,1735323043318,-504.55951917,0.00010552,2]
[346846979,1735323043330,-500.0,0.00010552,2]
[346846981,1735323043340,-968.91,0.00010552,2]
[346846984,1735323043351,-500.0,0.00010552,2]
[346846987,1735323043362,-613.52,0.00010552,2]
[346846991,1735323043374,-500.0,0.00010552,2]
[346846994,1735323043385,-500.0,0.00010552,2]
[346846996,1735323043396,-500.0,0.00010552,2]
[346846997,1735323043406,-500.0,0.00010552,2]
[346846998,1735323043417,-500.0,0.00010552,2]
[346846999,1735323043428,-500.0,0.00010552,2]
[346847001,1735323043439,-598.0,0.00010552,2]
[346847003,1735323043451,-500.0,0.00010552,2]
[346847006,1735323043463,-500.0,0.00010552,2]
[346847007,1735323043474,-500.0,0.00010552,2]
[346847008,1735323043486,-500.0,0.00010552,2]
[346847009,1735323043497,-616.71,0.00010552,2]
[346847010,1735323043508,-500.0,0.00010552,2]
[346847011,1735323043521,-500.0,0.00010552,2]
[346847012,1735323043531,-500.0,0.00010552,2]
[346847013,1735323043542,-500.0,0.00010552,2]
[346847014,1735323043553,-500.0,0.00010552,2]
[346847015,1735323043564,-706.84,0.00010552,2]
[346847016,1735323043574,-500.0,0.00010552,2]
[346847017,1735323043585,-756.92,0.00010552,2]
[346847018,1735323043596,-1071.82,0.00010552,2]
[346847019,1735323043606,-500.0,0.00010552,2]
[346847020,1735323043617,-225.28221356,0.00010552,2]
[346847021,1735323043630,-519.45,0.00010552,2]
[346847022,1735323043640,-500.0,0.00010552,2]
[346847023,1735323043651,-580.03,0.00010552,2]
[346847024,1735323043662,-500.0,0.00010552,2]
[346847025,1735323043674,-524.23,0.00010552,2]
[346847026,1735323043685,-500.0,0.00010552,2]
[346847027,1735323043695,-296.04843249,0.00010552,2]
[346847028,1735323043734,-203.95156751,0.00010552,2]
[346847029,1735323043744,-500.0,0.00010552,2]
[346847030,1735323043755,-465.04843249,0.00010552,2]
[346847031,1735323043771,-34.95156751,0.00010552,2]
[346847032,1735323043782,-604.23,0.00010552,2]
[346847033,1735323043793,-399.82,0.00010552,2]
[346847034,1735323043803,-800.2,0.00010552,2]
[346847035,1735323043815,-500.0,0.00010552,2]
[346847036,1735323043825,-500.0,0.00010552,2]
[346847037,1735323043835,-500.0,0.00010552,2]
[346847038,1735323043846,-517.36,0.00010552,2]
[346847039,1735323043856,-731.08,0.00010552,2]
[346847040,1735323043867,-725.69,0.00010552,2]
[346847041,1735323043878,-500.0,0.00010552,2]
[346847042,1735323043889,-552.05,0.00010552,2]
[346847043,1735323043899,-500.0,0.00010552,2]
[346847044,1735323043911,-571.77,0.00010552,2]
[346847045,1735323043921,-500.0,0.00010552,2]
[346847046,1735323043932,-500.0,0.00010552,2]
[346847047,1735323043942,-568.99,0.00010552,2]
[346847048,1735323043953,-500.0,0.00010552,2]
[346847049,1735323043964,-500.0,0.00010552,2]
[346847050,1735323043974,-500.0,0.00010552,2]
[346847051,1735323043985,-500.0,0.00010552,2]
[346847052,1735323043996,-547.87,0.00010552,2]
[346847053,1735323044007,-500.0,0.00010552,2]
[346847054,1735323044020,-500.0,0.00010552,2]
[346847055,1735323044031,-146.66498701,0.00010552,2]
[346847060,1735323046129,-1293.8,0.00010551,2]
[346847061,1735323046139,-263.21891417,0.00010552,2]
[346847062,1735323046148,-756.45,0.00010552,2]
[346847063,1735323046158,-500.0,0.00010552,2]
[346847064,1735323046167,-500.0,0.00010552,2]
[346847065,1735323046176,-7.11694194,0.00010552,2]
[346847066,1735323046187,-492.88305806,0.00010552,2]
[346847067,1735323046196,-460.11694194,0.00010552,2]
[346847068,1735323046208,-39.88305806,0.00010552,2]
[346847069,1735323046217,-566.67,0.00010552,2]
[346847070,1735323046227,-500.0,0.00010552,2]
[346847071,1735323046236,-638.91,0.00010552,2]
[346847072,1735323046245,-500.0,0.00010552,2]
[346847073,1735323046255,-40.13813291,0.00010552,2]
[346847074,1735323046266,-459.86186709,0.00010552,2]
[346847075,1735323046277,-500.0,0.00010552,2]
[346847076,1735323046286,-500.0,0.00010552,2]
[346847077,1735323046296,-740.39,0.00010552,2]
[346847078,1735323046305,-500.0,0.00010552,2]
[346847079,1735323046315,-500.0,0.00010552,2]
[346847080,1735323046324,-500.0,0.00010552,2]
[346847081,1735323046333,-376.02684816,0.00010552,2]
[346847082,1735323046342,-500.0,0.00010552,2]
[346847083,1735323046351,-344.73574205,0.00010552,2]
[346847084,1735323046423,-155.26425795,0.00010552,2]
[346847085,1735323046433,-500.0,0.00010552,2]
[346847086,1735323046442,-185.56404205,0.00010552,2]
[346847087,1735323046485,-315.0661411,0.00010552,2]
[346847088,1735323046494,-218.5838523,0.00010552,2]
[346847089,1735323082187,678.23,8.219e-05,2]
[346847090,1735323129944,582.302,9.675e-05,2]
[346847091,1735323129966,417.698,9.675e-05,2]
[346847092,1735323425947,-1000.0,0.00012999,10]
[346847093,1735323451571,-249.53,0.000128,9]
[346847094,1735323451600,-750.47,0.00012999,9]
[346847095,1735323553513,328.83,9.382e-05,2]
[346847096,1735323553737,328.83,9.384e-05,2]
[346847097,1735323553940,328.83,9.387e-05,2]
[346847098,1735323554161,328.83,9.389e-05,2]
[346847099,1735323554340,328.83,9.392e-05,2]
[346847100,1735323554549,328.83,9.394e-05,2]
[346847101,1735323554776,328.83,9.397e-05,2]
[346847102,1735323555006,328.83,9.399e-05,2]
[346847103,1735323555393,328.83,9.401e-05,2]
[346847104,1735323555460,328.83,9.404e-05,2]
[346847105,1735323555643,328.83,9.406e-05,2]
[346847106,1735323555833,328.83,9.409e-05,2]
[346847107,1735323556061,328.83,9.411e-05,2]
[346847108,1735323556297,328.83,9.414e-05,2]
[346847109,1735323556491,328.83,9.416e-05,2]
[346847110,1735323556690,328.83,9.419e-05,2]
[346847111,1735323556883,328.83,9.421e-05,2]
[346847112,1735323557124,328.83,9.424e-05,2]
[346847113,1735323557369,328.83,9.426e-05,2]
[346847114,1735323557583,328.83,9.429e-05,2]
[346847115,1735323625433,250.0,9.363e-05,2]
[346847116,1735323939947,1500.0,9.344e-05,2]
[346847117,1735323949893,644.31,8.219e-05,2]
[346847118,1735324008645,514.73,9.361e-05,2]
[346847119,1735324022781,96.662,9.341e-05,2]
[346847120,1735324022805,103.338,9.341e-05,2]
[346847122,1735324048778,400.0,9.4e-05,3]
[346847123,1735324050881,900.0,9.5e-05,3]
[346847124,1735324052987,1400.0,9.6e-05,3]
[346847464,1735324164342,1000.0,9.288e-05,2]
[346847526,1735324166330,-1900.0,9.7e-05,3]
[346847528,1735324166353,-2400.0,9.8e-05,3]
[346847530,1735324166375,-400.0,9.9e-05,3]
[346847532,1735324166396,-907.49930469,9.937e-05,2]
[346847533,1735324166417,-185.71,9.942e-05,2]
[346847535,1735324166439,-4206.79069531,9.942e-05,2]
[346847629,1735324170915,-10000.0,9.942e-05,2]
[346847774,1735324174954,-10000.0,9.942e-05,2]
[346847775,1735324178956,-10000.0,9.942e-05,2]
[346847782,1735324182418,-10000.0,9.942e-05,2]
[346847788,1735324186353,-5793.20930469,9.942e-05,2]
[346847789,1735324186381,-400.0,0.0001,3]
[346847790,1735324186410,-247.53,0.00010036,2]
[346847791,1735324186439,-249.05,0.00010036,2]
[346847792,1735324186467,-250.15,0.00010036,2]
[346847793,1735324186495,-249.24,0.00010036,2]
[346847794,1735324186522,-250.61,0.00010036,2]
[346847795,1735324186549,-254.08,0.00010037,2]
[346847796,1735324186575,-251.9,0.00010037,2]
[346847797,1735324186602,-250.14,0.00010037,2]
[346847798,1735324186628,-252.4,0.00010037,2]
[346847799,1735324186655,-248.42,0.00010037,2]
[346847800,1735324186681,-246.57,0.00010037,2]
[346847801,1735324186707,-247.95,0.00010037,2]
[346847802,1735324186734,-246.69,0.00010037,2]
[346847803,1735324186761,-562.06069531,0.00010067,2]
[346847804,1735324188842,151.8932038,0.0002,120]
[346847805,1735324190197,-10000.0,0.00010067,2]
[346847869,1735324231859,-29960.93930469,0.00010067,2]
[346847870,1735324231868,-251.17,0.00010067,2]
[346847871,1735324231878,-219.73,0.00010137,2]
[346847872,1735324231887,-361.14,0.00010137,2]
[346847873,1735324231897,-250.72,0.00010137,2]
[346847874,1735324231906,-253.85,0.00010137,2]
[346847875,1735324231920,-247.71,0.00010137,2]
[346847876,1735324231928,-251.28,0.00010137,2]
[346847877,1735324231937,-252.59,0.00010137,2]
[346847878,1735324231950,-248.97,0.00010137,2]
[346847879,1735324231961,-250.36,0.00010137,2]
[346847880,1735324231970,-250.57,0.00010137,2]
[346847881,1735324231981,-251.66,0.00010137,2]
[346847882,1735324231991,-247.66,0.00010138,2]
[346847883,1735324232003,-250.91,0.00010138,2]
[346847884,1735324232012,-253.02,0.0001014,2]
[346847885,1735324232024,-251.86,0.00010142,2]
[346847886,1735324232033,-253.66,0.00010147,2]
[346847887,1735324232043,-247.94,0.00010155,2]
[346847888,1735324232053,-246.92,0.00010171,2]
[346847889,1735324232063,-247.47,0.00010202,2]
[346847890,1735324232073,-253.85,0.00010258,2]
[346847891,1735324232084,-1348.5313,0.00010363,2]
[346847892,1735324232095,-251.96,0.00010363,2]
[346847894,1735324232105,-42895.6456,0.0001038,2]
[346847896,1735324232114,-167.25950434,0.00010383,2]
[346847897,1735324232123,-164.83792681,0.00010383,2]
[346847899,1735324232133,-436.57,0.000104,2]
[346847901,1735324232142,-1000.0,0.000104,2]
[346847903,1735324232151,-1006.0,0.000104,2]
[346847905,1735324232160,-1000.0,0.000104,2]
[346847907,1735324232169,-296.1025871,0.000104,2]
[346847909,1735324232179,-204.5803165,0.000104,2]
[346847911,1735324232188,-23861.8015735,0.000104,2]
[346847913,1735324232197,-644.31,0.00010441,2]
[346847915,1735324232207,-1000.0,0.00010449,2]
[346847917,1735324232216,-1000.0,0.00010452,2]
[346847919,1735324232225,-288.2881,0.00010452,2]
[346847921,1735324232234,-2241.0,0.00010466,2]
[346847923,1735324232243,-169.48483703,0.00010473,2]
[346847925,1735324232252,-314.4155514,0.00010473,2]
[346847927,1735324232261,-500.0,0.00010473,2]
[346847929,1735324232272,-500.0,0.00010478,2]
[346847931,1735324232281,-2168.22,0.00010478,2]
[346847933,1735324232290,-527.88,0.00010478,2]
[346847935,1735324232299,-4050.31262238,0.00010478,2]
[346847940,1735324232337,-3066.83737762,0.00010478,2]
[346847968,1735324232588,-1836.43,0.00010478,2]
[346847970,1735324232598,-1207.14,0.00010478,2]
[346847972,1735324232607,-1614.98,0.00010478,2]
[346847974,1735324232616,-2702.24,0.00010478,2]
[346847976,1735324232626,-500.0,0.00010478,2]
[346847978,1735324232635,-985.1,0.00010478,2]
[346847980,1735324232644,-500.0,0.00010478,2]
[346847982,1735324232653,-500.0,0.00010478,2]
[346847984,1735324232662,-500.0,0.00010478,2]
[346847986,1735324232671,-500.0,0.00010478,2]
[346847987,1735324232680,-500.0,0.00010478,2]
[346847989,1735324232689,-500.0,0.00010478,2]
[346847991,1735324232698,-1957.8,0.00010478,2]
[346847993,1735324232707,-500.0,0.00010478,2]
[346847995,1735324232717,-500.0,0.00010478,2]
[346847997,1735324232727,-500.0,0.00010478,2]
[346847999,1735324232737,-167.46045913,0.00010478,2]
[346848487,1735324237683,-252.37,0.00010067,2]
[346848489,1735324237693,-164.00496519,0.00010473,2]
[346848491,1735324237702,-332.53954087,0.00010478,2]
[346848493,1735324237711,-500.0,0.00010478,2]
[346848494,1735324237721,-1135.69,0.00010478,2]
[346848495,1735324237730,-500.0,0.00010478,2]
[346848496,1735324237740,-550.09,0.00010478,2]
[346848497,1735324237750,-500.0,0.00010478,2]
[346848498,1735324237760,-949.3,0.00010478,2]
[346848499,1735324237771,-500.0,0.00010479,2]
[346848500,1735324237782,-342.16571356,0.00010479,2]
[346848501,1735324237792,-807.98,0.00010479,2]
[346848503,1735324237801,-502.86235044,0.00010479,2]
[346848505,1735324237810,-500.0,0.00010479,2]
[346848507,1735324237819,-506.8314041,0.00010479,2]
[346848509,1735324237829,-516.32342126,0.00010479,2]
[346848511,1735324237838,-511.19320003,0.00010479,2]
[346848513,1735324237847,-500.0,0.00010479,2]
[346848515,1735324237856,-500.0,0.00010479,2]
[346848517,1735324237866,-500.0,0.00010479,2]
[346848519,1735324237876,-505.15900378,0.00010479,2]
[346848521,1735324237885,-512.65761475,0.00010479,2]
[346848523,1735324237894,-500.0,0.00010479,2]
[346848525,1735324237904,-659.48,0.00010479,2]
[346848527,1735324237915,-500.0,0.00010479,2]
[346848529,1735324237924,-500.0,0.00010479,2]
[346848531,1735324237934,-500.0,0.00010479,2]
[346848533,1735324237943,-500.0,0.00010479,2]
[346848535,1735324237954,-504.3416016,0.00010479,2]
[346848537,1735324237963,-518.08090368,0.00010479,2]
[346848539,1735324237973,-500.0,0.00010479,2]
[346848541,1735324237982,-542.6101501,0.00010479,2]
[346848543,1735324237992,-500.0,0.00010479,2]
[346848545,1735324238002,-500.0,0.00010479,2]
[346848547,1735324238011,-500.0,0.00010479,2]
[346848549,1735324238020,-792.23,0.00010479,2]
[346848551,1735324238031,-500.0,0.00010479,2]
[346848553,1735324238042,-494.09013064,0.00010479,2]
[346848557,1735324238074,-5.90986936,0.00010479,2]
[346848559,1735324238084,-500.0,0.00010479,2]
[346848561,1735324238094,-503.93388502,0.00010479,2]
[346848563,1735324238103,-544.39,0.00010479,2]
[346848565,1735324238112,-500.0,0.00010479,2]
[346848567,1735324238122,-737.12,0.00010479,2]
[346848569,1735324238131,-500.0,0.00010479,2]
[346848571,1735324238141,-629.62,0.00010479,2]
[346848573,1735324238150,-500.0,0.00010479,2]
[346848575,1735324238159,-500.0,0.00010479,2]
[346848577,1735324238169,-500.0,0.00010479,2]
[346848579,1735324238178,-500.0,0.00010479,2]
[346848581,1735324238188,-692.95,0.00010479,2]
[346848584,1735324238198,-406.11292402,0.00010479,2]
[346848586,1735324238208,-500.0,0.00010479,2]
[346848587,1735324238217,-500.0,0.00010479,2]
[346848589,1735324238227,-175.26,0.00010479,2]
[346848592,1735324238236,-742.29,0.00010479,2]
[346848593,1735324238247,-862.13,0.00010479,2]
[346848596,1735324238257,-500.0,0.00010479,2]
[346848597,1735324238267,-196.53,0.00010479,2]
[346848599,1735324238278,-500.0,0.00010479,2]
[346848601,1735324238290,-500.0,0.00010479,2]
[346848603,1735324238299,-766.6,0.00010479,2]
[346848605,1735324238308,-182.37,0.00010479,2]
[346848607,1735324238318,-500.0,0.00010479,2]
[346848609,1735324238327,-301.8,0.00010479,2]
[346848611,1735324238336,-155.06,0.00010479,2]
[346848613,1735324238346,-230.45,0.00010479,2]
[346848615,1735324238356,-500.0,0.00010479,2]
[346848617,1735324238366,-500.0,0.00010479,2]
[346848619,1735324238375,-500.0,0.00010479,2]
[346848647,1735324238626,-500.0,0.00010479,2]
[346848649,1735324238636,-939.7,0.00010479,2]
[346848651,1735324238646,-997.59,0.00010479,2]
[346848653,1735324238654,-500.0,0.00010479,2]
[346848655,1735324238663,-615.0,0.00010479,2]
[346848656,1735324238672,-569.29,0.00010479,2]
[346848658,1735324238682,-500.0,0.00010479,2]
[346848661,1735324238691,-1000.75,0.00010479,2]
[346848663,1735324238701,-656.79,0.00010479,2]
[346848665,1735324238711,-806.12,0.00010479,2]
[346848667,1735324238720,-500.0,0.00010479,2]
[346848669,1735324238729,-500.0,0.00010479,2]
[346848671,1735324238738,-1322.04,0.00010479,2]
[346848673,1735324238747,-873.6,0.00010479,2]
[346848675,1735324238757,-500.0,0.00010479,2]
[346848677,1735324238768,-500.0,0.00010479,2]
[346848679,1735324238781,-1376.19,0.00010479,2]
[346848681,1735324238790,-500.0,0.00010479,2]
[346848683,1735324238799,-500.0,0.00010479,2]
[346848685,1735324238809,-500.0,0.00010479,2]
[346848687,1735324238818,-500.0,0.00010479,2]
[346848689,1735324238827,-340.04,0.00010479,2]
[346848691,1735324238836,-1246.73,0.00010479,2]
[346848693,1735324238845,-500.0,0.00010479,2]
[346848695,1735324238854,-572.27,0.00010479,2]
[346848697,1735324238864,-647.63,0.00010479,2]